bitfinex-derivatives/quotes_SOLF0:USTF0_20250829
["timestamp","ask_amount","ask_price","bid_price","bid_amount"]
[1756432220085,11.8528,214.11,214.01,7.7]
[1756432220284,7.65,214.11,214.01,7.7]
[1756432220684,2.53033708,214.1,214.01,7.7]
[1756432220888,7.65,214.11,214.01,7.7]
[1756432221087,2.53034962,214.1,214.01,7.7]
[1756432221287,2.53371735,214.09,214.01,7.7]
[1756432221482,10.18394559,214.08,213.92,7.7]
[1756432221689,2.53394559,214.07,213.97,128.82]
[1756432221987,7.65,214.08,213.97,128.82]
[1756432222281,7.65,214.04,213.88,7.7]
[1756432222488,7.65,214.01,213.91,7.7]
[1756432222682,4.2056,213.97,213.91,7.7]
[1756432222885,7.65,214.05,213.91,7.7]
[1756432223085,65.4006,214.03,213.91,7.7]
[1756432223285,5.76429846,214.02,213.91,7.7]
[1756432223486,4.2054,213.98,213.91,7.7]
[1756432224087,4.2056,213.97,213.91,7.7]
[1756432224287,2.54506166,213.96,213.88,121.34]
[1756432224588,7.65,214.0,213.89,7.7]
[1756432224785,5.77337248,213.99,213.89,7.7]
[1756432224987,2.54512891,213.98,213.89,7.7]
[1756432225179,2.54512891,213.97,213.89,7.7]
[1756432225384,2.54512891,213.96,213.9,4.2067]
[1756432225586,7.65,214.05,213.89,7.7]
[1756432225889,5.77825076,214.04,213.89,7.7]
[1756432226085,2.5472358,214.03,213.95,7.7]
[1756432226289,2.5472358,214.02,213.95,7.7]
[1756432226482,7.65,214.1,213.95,7.7]
[1756432226682,5.77887898,214.09,213.95,7.7]
[1756432226890,5.77887898,214.08,213.95,7.7]
[1756432227090,5.77887898,214.07,213.95,7.7]
[1756432227289,5.77887898,214.06,213.95,7.7]
[1756432227490,73.0483,214.04,213.87,7.7]
[1756432227687,65.392,214.06,213.88,65.4464]
[1756432227688,7.65,214.02,213.88,65.4464]
[1756432227884,5.77887898,214.01,213.88,65.4464]
[1756432228089,5.77887898,214.0,213.88,65.4464]
[1756432228290,5.77887898,213.99,213.93,4.2061]
[1756432228488,2.54775437,213.98,213.91,7.7]
[1756432228688,7.65,214.02,213.91,7.7]
[1756432228889,5.7823799,214.01,213.91,7.7]
[1756432229195,7.65,214.07,213.95,7.7]
[1756432229390,2.54898524,214.06,213.98,7.7]
[1756432229597,2.54898524,214.05,213.98,7.7]
[1756432229794,7.65,214.12,213.98,7.7]
[1756432229985,5.78088743,214.11,213.98,7.7]
[1756432230186,5.78088743,214.1,213.99,121.94]
[1756432230390,5.78088743,214.09,213.99,121.94]
[1756432230592,2.54876818,214.08,214.0,7.7]
[1756432230895,2.54876818,214.07,214.0,7.7]
[1756432231191,7.65,214.12,214.04,4.2039]
[1756432231395,5.78098713,214.11,214.04,4.2039]
[1756432231696,2.54873847,214.1,214.04,4.2039]
[1756432231895,2.54873847,214.09,214.04,11.9039]
[1756432232100,7.65,214.12,214.04,11.9039]
[1756432232303,2.54875764,214.11,214.04,11.9039]
[1756432232503,2.54875764,214.1,214.04,11.9039]
[1756432232704,2.54875764,214.09,214.04,4.2039]
[1756432233000,101.58585187,214.14,214.07,4.2033]
[1756432233205,2.54892358,214.13,214.07,4.2033]
[1756432233504,2.54892358,214.12,214.07,11.9033]
[1756432233702,4.2019,214.16,214.07,11.9033]
[1756432233901,5.78016289,214.15,214.07,7.7]
[1756432236308,5.7834438,214.12,213.99,7.7]
[1756432236606,2.55020466,214.11,213.99,7.7]
[1756432236808,2.55020466,214.1,214.03,4.2043]
[1756432237006,2.55020466,214.09,214.03,4.2043]
[1756432237211,11.8524,214.13,214.03,4.2043]
[1756432237401,3.23413968,214.12,214.03,4.2043]
[1756432237598,3.23413968,214.12,213.99,7.7]
[1756432237599,2.55053439,214.11,214.01,65.4063]
[1756432237803,7.52,214.18,214.03,65.4003]
[1756432237997,5.78439171,214.17,214.03,65.4003]
[1756432238209,5.78439094,214.16,214.03,65.4003]
[1756432238511,5.78439094,214.15,214.03,65.4003]
[1756432238709,2.55043576,214.14,214.08,4.2031]
[1756432238909,4.2017,214.16,214.08,11.2631]
[1756432238910,2.55043576,214.13,214.08,11.2631]
[1756432239109,4.2017,214.16,214.08,11.2631]
[1756432239410,2.55046139,214.15,214.08,11.2631]
[1756432239608,2.55046139,214.14,214.08,11.2631]
[1756432239804,2.55046139,214.13,214.08,11.2631]
[1756432239999,7.52,214.18,214.08,7.06]
[1756432240210,2.55023059,214.17,214.08,7.06]
[1756432240402,2.55023059,214.16,214.11,0.0301821]
[1756432240598,2.55023059,214.15,214.11,0.0301821]
[1756432240805,7.52,214.23,214.12,11.2624]
[1756432241009,5.78229384,214.22,214.12,11.2624]
[1756432241208,5.78229384,214.21,214.12,11.2624]
[1756432241403,5.78229384,214.2,214.12,11.2624]
[1756432241606,2.54964153,214.19,214.13,4.2021]
[1756432241904,2.54964153,214.18,214.13,4.2021]
[1756432242104,7.52,214.23,214.14,7.06]
[1756432242303,4.2009,214.21,214.14,7.06]
[1756432242508,2.54878689,214.2,214.14,7.06]
[1756432242707,4.2009,214.21,214.14,7.06]
[1756432242708,2.54878689,214.19,214.14,7.06]
[1756432242908,4.2009,214.21,214.14,7.06]
[1756432243211,10.06784347,214.2,214.11,4.2027]
[1756432243508,2.54784347,214.19,214.11,4.2027]
[1756432243709,2.54784347,214.18,214.15,0.02994229]
[1756432243911,7.52,214.21,214.15,0.02994229]
[1756432244112,7.52,214.19,214.15,0.02994229]
[1756432244305,7.52,214.17,214.15,0.02994229]
[1756432244499,2.54657086,214.16,214.15,0.02994229]
[1756432244704,10.06657086,214.16,214.15,0.02994229]
[1756432246708,7.52,214.19,214.15,0.02994229]
[1756432246907,4.2011,214.2,214.15,0.02994229]
[1756432246908,10.06620145,214.18,214.15,0.02994229]
[1756432247215,4.2011,214.2,214.15,0.02994229]
[1756432247216,10.06620145,214.17,214.15,0.02994229]
[1756432247408,2.54585878,214.16,214.15,0.02994229]
[1756432247603,7.52,214.16,214.15,0.02994229]
[1756432249415,7.52,214.18,214.15,0.02994229]
[1756432249613,7.52,214.16,214.15,0.02994229]
[1756432249812,10.06555467,214.16,214.15,0.02994229]
[1756432250913,10.06555467,214.16,213.96,7.84567304]
[1756432250914,7.52,214.13,213.97,7.06]
[1756432251214,4.2044,214.03,213.97,7.06]
[1756432251410,4.00370895,214.04,213.91,7.06]
[1756432251610,2.54651013,214.03,213.91,7.06]
[1756432251810,4.00370895,214.04,213.91,7.06]
[1756432252018,0.03023652,213.99,213.91,7.06]
[1756432252910,0.03023652,213.99,213.92,65.4335]
[1756432253111,0.03023652,213.99,213.94,65.428]
[1756432254010,0.03023652,213.99,213.95,7.06]
[1756432254317,0.03023652,213.99,213.94,65.428]
[1756432254510,0.03023652,213.99,213.98,7.06]
[1756432254713,7.52,214.12,213.99,65.412]
[1756432254912,2.54511995,214.11,213.99,65.412]
[1756432255115,2.54511995,214.1,213.99,65.412]
[1756432255311,11.7227,214.12,214.03,4.2041]
[1756432255512,2.54489819,214.11,214.03,4.2041]
[1756432255714,2.54489819,214.1,214.03,4.2041]
[1756432255908,11.7227,214.12,214.03,4.2041]
[1756432256114,2.54492794,214.11,214.03,4.2041]
[1756432256315,2.54492794,214.1,214.03,4.2041]
[1756432256510,11.7227,214.12,214.03,4.2041]
[1756432256713,2.54496731,214.11,214.03,4.2041]
[1756432256915,2.54496731,214.1,214.03,4.2041]
[1756432257111,11.7227,214.12,214.03,4.2041]
[1756432257315,2.54496731,214.11,214.03,4.2041]
[1756432257520,2.54496731,214.1,214.03,4.2041]
[1756432257709,4.2029,214.11,214.03,4.2041]
[1756432257909,7.52,214.09,214.01,4.2046]
[1756432258511,7.52,214.09,214.03,0.02952887]
[1756432259821,11.7233,214.09,214.03,0.02952887]
[1756432260222,7.52,214.09,214.03,4.23382887]
[1756432260418,7.52,214.09,214.03,0.02952887]
[1756432260815,11.52370895,214.14,214.05,4.2039]
[1756432261013,11.52370895,214.14,214.03,0.02952887]
[1756432261014,5.77363833,214.13,214.03,0.02952887]
[1756432261219,11.52370895,214.14,214.02,7.06]
[1756432261220,5.77363833,214.12,214.02,7.06]
[1756432261420,2.54473246,214.11,214.02,11.2643]
[1756432261721,7.52,214.18,214.05,7.06]
[1756432261921,7.52,214.18,214.06,65.3911]
[1756432261922,2.54437334,214.17,214.06,65.3911]
[1756432262224,2.54437334,214.16,214.06,65.3911]
[1756432262421,7.52,214.14,214.09,0.03574033]
[1756432262618,7.52,214.12,214.09,0.03574033]
[1756432262821,7.52,214.19,214.09,0.03574033]
[1756432263022,5.77291068,214.18,214.09,0.03574033]
[1756432263213,5.77291068,214.17,214.09,0.03574033]
[1756432263419,7.52,214.19,214.09,0.03574033]
[1756432263420,2.5444957,214.16,214.09,0.03574033]
[1756432263623,2.5444957,214.15,214.09,0.03574033]
[1756432263819,4.2013,214.18,214.09,0.03574033]
[1756432264018,2.54431134,214.17,214.09,0.03574033]
[1756432264219,7.52,214.19,214.09,7.09574033]
[1756432264427,2.5438683,214.18,214.09,7.09574033]
[1756432264627,2.5438683,214.17,214.09,7.09574033]
[1756432264826,7.52,214.19,214.09,7.09574033]
[1756432265027,2.54386779,214.18,214.09,7.09574033]
[1756432265226,2.54386779,214.17,214.09,0.03574033]
[1756432265426,121.14,214.22,214.09,0.03574033]
[1756432265628,13.26082326,214.21,214.12,4.2024]
[1756432265821,5.83282502,214.2,214.12,4.2024]
[1756432266128,2.54362296,214.19,214.12,4.2024]
[1756432266422,4.2009,214.21,214.12,4.2024]
[1756432266630,2.54298318,214.2,214.12,4.2024]
[1756432266824,2.54298318,214.19,214.1,4.2029]
[1756432267019,121.14,214.22,214.1,4.2029]
[1756432267223,121.14,214.22,213.99,65.4125]
[1756432267224,65.3495,214.2,214.01,4.00370895]
[1756432267422,2.54286089,214.19,214.01,55.22]
[1756432267829,69.36510895,214.16,213.97,379.2982]
[1756432268021,69.36510895,214.16,213.97,313.88]
[1756432268022,65.3669,214.14,213.97,313.88]
[1756432268225,4.00370895,214.12,213.97,313.88]
[1756432268424,2.54316997,214.11,213.97,313.88]
[1756432268625,6.74610176,214.1,214.01,4.2045]
[1756432268822,4.2029,214.1,213.98,65.4152]
[1756432269321,4.00370895,214.12,214.04,4.2041]
[1756432269629,2.54437893,214.11,214.04,4.2041]
[1756432269925,125.14370895,214.2,214.05,65.3942]
[1756432270229,9.06508035,214.19,214.05,65.3942]
[1756432270430,2.54463202,214.18,214.07,65.3881]
[1756432270622,2.54463202,214.17,214.07,65.3881]
[1756432270820,2.54463202,214.16,214.07,65.3881]
[1756432271027,4.2008,214.21,214.07,65.3881]
[1756432271228,9.06648974,214.2,214.07,65.3881]
[1756432271426,2.54533728,214.19,214.07,65.3881]
[1756432271624,2.54533728,214.18,214.07,65.3881]
[1756432271824,2.54533728,214.17,214.07,65.3881]
[1756432272125,4.00370895,214.24,214.09,65.3791]
[1756432272325,9.06437752,214.23,214.05,65.3942]
[1756432272529,9.06437752,214.22,214.06,121.12]
[1756432272729,9.06437752,214.21,214.06,121.12]
[1756432273030,2.54485507,214.2,214.06,121.12]
[1756432273223,2.54485507,214.19,214.07,65.3882]
[1756432273420,2.54485507,214.18,214.08,65.3842]
[1756432273627,4.00370895,214.24,214.08,65.3842]
[1756432273827,9.06729716,214.23,214.09,65.382]
[1756432274030,4.2009,214.21,214.14,4.2019]
[1756432274330,2.54574437,214.2,214.07,65.3882]
[1756432274530,2.54574437,214.19,214.07,65.3882]
[1756432274726,2.54574437,214.18,214.07,65.3882]
[1756432274929,4.2011,214.2,214.07,65.3882]
[1756432275129,2.54534146,214.19,214.07,65.3882]
[1756432275330,4.00370895,214.24,214.14,4.2021]
[1756432275526,4.00370895,214.24,214.02,65.4036]
[1756432275527,65.3457,214.21,214.02,65.4036]
[1756432275737,69.36490895,214.16,213.98,65.4153]
[1756432275926,9.06620878,214.15,214.03,4.2042]
[1756432276127,4.203,214.1,213.98,65.4153]
[1756432276727,4.2025,214.12,213.99,65.4112]
[1756432276929,4.2025,214.12,214.0,65.4096]
[1756432277130,2.54425763,214.11,214.0,65.4096]
[1756432277326,4.00370895,214.16,214.0,65.4096]
[1756432277327,4.2021,214.14,214.02,65.4027]
[1756432277524,2.54405302,214.13,214.0,65.4096]
[1756432277730,4.00370895,214.16,214.01,65.4064]
[1756432277930,4.2022,214.14,214.06,4.2035]
[1756432278132,2.54401865,214.13,214.06,4.2035]
[1756432278331,4.2022,214.14,214.06,4.2035]
[1756432278531,2.54594063,214.13,214.06,4.2035]
[1756432278737,4.00370895,214.16,214.05,65.3944]
[1756432279034,65.3409,214.23,214.02,65.4007]
[1756432279035,4.00370895,214.2,214.02,65.4007]
[1756432279233,9.06386802,214.19,214.03,65.4002]
[1756432279433,9.06386802,214.19,214.02,65.4007]
[1756432279434,2.54649,214.18,214.04,65.3973]
[1756432279631,2.54649,214.17,214.04,65.3973]
[1756432279831,2.54649,214.16,214.08,4.2031]
[1756432280032,4.2017,214.17,214.08,4.2031]
[1756432280232,6.74814154,214.16,214.08,4.2031]
[1756432280429,2.54692522,214.15,214.02,65.4007]
[1756432280631,4.00370895,214.2,214.03,65.4003]
[1756432280830,9.06678025,214.19,214.03,65.4003]
[1756432281031,5.837865,214.18,214.05,65.3936]
[1756432281338,5.83830077,214.17,214.04,65.3964]
[1756432281533,2.5470402,214.16,214.04,65.3964]
[1756432281836,2.5470402,214.16,214.02,186.3807]
[1756432281837,2.5470402,214.15,214.07,4.2033]
[1756432282233,4.2019,214.16,214.07,4.2033]
[1756432282436,6.75069366,214.15,214.07,4.2033]
[1756432282628,4.00370895,214.2,214.05,65.3942]
[1756432282832,9.07259566,214.19,214.06,65.3911]
[1756432283031,2.5486916,214.18,214.06,65.3911]
[1756432283237,2.5486916,214.17,214.06,65.3911]
[1756432283433,4.00370895,214.2,214.06,65.3911]
[1756432283731,2.54892764,214.19,214.05,65.3942]
[1756432283937,2.54892764,214.18,214.03,120.92]
[1756432284138,2.54892764,214.17,214.03,120.92]
[1756432284338,2.54892764,214.16,214.05,65.3928]
[1756432284537,4.00370895,214.2,214.05,65.3928]
[1756432284738,9.07359248,214.19,214.05,65.3928]
[1756432284939,5.84223795,214.18,214.03,120.92]
[1756432285238,2.54899393,214.17,214.07,65.3877]
[1756432285437,2.54899393,214.16,214.07,65.3877]
[1756432285639,116.16370895,214.23,214.05,65.3943]
[1756432285829,9.07349854,214.22,214.05,65.3943]
[1756432286030,9.07349854,214.21,214.05,65.3943]
[1756432286233,9.07349854,214.2,214.05,65.3943]
[1756432286438,9.07349854,214.19,214.04,120.82]
[1756432286737,5.84217844,214.18,214.04,120.82]
[1756432286933,2.5489681,214.17,214.04,120.82]
[1756432287135,2.5489681,214.16,214.04,120.82]
[1756432287339,116.16370895,214.23,214.04,120.82]
[1756432287539,313.88,214.28,214.04,120.82]
[1756432287540,9.07430626,214.22,214.07,4.00370895]
[1756432287839,313.88,214.28,214.07,11.84938199]
[1756432288044,9.07001047,214.27,214.12,0.02957487]
[1756432288246,2.54864772,214.26,214.12,78.66957487]
[1756432288543,2.54864772,214.25,214.12,78.64]
[1756432288745,313.88,214.28,214.17,0.03372436]
[1756432288947,5.83936428,214.27,214.17,0.03372436]
[1756432289146,5.83936428,214.26,214.13,82.1]
[1756432289343,313.88,214.28,214.2,0.03507722]
[1756432289544,5.8378105,214.27,214.2,0.03507722]
[1756432289741,2.54726873,214.26,214.2,0.03507722]
[1756432289946,2.54726873,214.25,214.2,0.03507722]
[1756432290145,2.54726873,214.24,214.2,0.03507722]
[1756432290348,4.00370895,214.3,214.2,0.03507722]
[1756432290544,5.83535278,214.29,214.2,0.03507722]
[1756432290744,4.00370895,214.3,214.2,0.03507722]
[1756432290745,5.83535278,214.28,214.2,0.03507722]
[1756432291050,120.78,214.32,214.2,0.03507722]
[1756432291350,5.83217873,214.31,214.2,0.03507722]
[1756432291651,5.83217873,214.3,214.2,0.03507722]
[1756432291851,2.54497731,214.29,214.2,0.03507722]
[1756432292045,2.54497731,214.28,214.2,0.03507722]
[1756432292248,120.78,214.32,214.2,0.03507722]
[1756432292554,5.82912306,214.31,214.2,0.03507722]
[1756432292849,2.54362492,214.3,214.2,0.03507722]
[1756432293050,120.78,214.32,214.2,0.03507722]
[1756432293051,2.54362492,214.29,214.2,0.03507722]
[1756432293250,120.78,214.32,214.2,0.03507722]
[1756432293452,2.5425074,214.31,214.2,0.03507722]
[1756432293653,2.5425074,214.3,214.2,0.03507722]
[1756432293855,2.5425074,214.29,214.2,0.03507722]
[1756432294054,2.5425074,214.28,214.2,0.03507722]
[1756432296351,4.00370895,214.25,214.2,0.03507722]
[1756432296549,2.5425074,214.24,214.2,0.03507722]
[1756432296750,2.5425074,214.23,214.2,0.03507722]
[1756432297055,4.00370895,214.25,214.2,0.03507722]
[1756432297252,5.85693694,214.24,214.2,0.03507722]
[1756432297457,2.54191885,214.23,214.2,0.03507722]
[1756432297657,2.54191885,214.22,214.2,0.03507722]
[1756432297858,4.00370895,214.25,214.2,0.03507722]
[1756432298156,5.85813969,214.24,214.2,0.03507722]
[1756432298354,2.54302676,214.23,214.2,0.03507722]
[1756432298555,2.54302676,214.22,214.2,0.03507722]
[1756432298761,2.54302676,214.22,214.07,1.24]
[1756432298762,4.00370895,214.25,214.05,5.2103465]
[1756432298952,4.00370895,214.21,214.04,1.84]
[1756432299348,2.54509443,214.2,214.04,1.84]
[1756432299552,2.54509443,214.19,214.02,5.2103465]
[1756432299758,4.00370895,214.17,214.02,5.2103465]
[1756432299956,4.00370895,214.17,214.01,5.2103465]
[1756432300156,0.03131778,214.13,214.01,5.2103465]
[1756432300866,0.03131778,214.13,214.02,5.2103465]
[1756432301256,0.03131778,214.13,214.05,5.2103465]
[1756432301457,0.03131778,214.13,214.05,9.21405545]
[1756432302261,0.03131778,214.13,214.06,5.2103465]
[1756432302462,0.03131778,214.13,214.07,7.14]
[1756432305763,0.03131778,214.13,214.09,7.14]
[1756432305969,0.03131778,214.13,214.08,5.2103465]
[1756432306165,0.03131778,214.13,214.09,7.14]
[1756432306762,7.72,214.24,214.1,7.14]
[1756432306967,7.72,214.24,214.13,7.14]
[1756432307169,7.72,214.24,214.13,12.3503465]
[1756432307365,7.72,214.24,214.13,7.14]
[1756432308263,7.72,214.24,214.16,0.03136323]
[1756432309172,11.72370895,214.24,214.16,0.03136323]
[1756432309372,7.72,214.22,214.16,0.03136323]
[1756432309968,7.72,214.2,214.16,0.03136323]
[1756432310162,7.72,214.18,214.16,0.03136323]
[1756432310366,7.72,214.23,214.16,0.03136323]
[1756432310568,7.72,214.21,214.16,0.03136323]
[1756432310768,7.72,214.19,214.16,0.03136323]
[1756432311071,7.72,214.24,214.08,7.14]
[1756432311271,7.72,214.22,214.08,7.14]
[1756432311472,2.55020329,214.21,214.15,0.02993617]
[1756432311672,7.72,214.22,214.15,0.02993617]
[1756432311872,2.55016436,214.21,214.15,0.02993617]
[1756432312067,7.72,214.19,214.15,0.02993617]
[1756432312569,7.72,214.2,214.15,0.02993617]
[1756432312774,2.55023426,214.19,214.15,0.02993617]
[1756432312973,7.72,214.17,214.06,7.14]
[1756432313267,7.72,214.2,214.15,0.02976303]
[1756432313471,4.00370895,214.21,214.06,7.14]
[1756432313472,5.8742187,214.19,214.06,7.14]
[1756432313669,10.27112744,214.18,214.06,7.14]
[1756432313870,7.72,214.16,214.15,0.03140349]
[1756432314071,7.72,214.16,214.01,5.2103465]
[1756432314072,7.72,214.14,214.01,5.2103465]
[1756432314270,7.72,214.12,214.0,7.14]
[1756432314470,2.5511531,214.11,214.0,7.14]
[1756432315269,0.03208921,214.08,214.0,7.14]
[1756432316574,7.72,214.07,213.95,5.2103465]
[1756432316775,7.72,214.05,213.93,7.14]
[1756432316970,2.55176688,214.04,213.93,7.14]
[1756432317172,0.03100791,214.01,213.93,7.14]
[1756432317871,7.75100791,214.01,213.86,7.14]
[1756432318074,4.00370895,214.0,213.86,7.14]
[1756432318265,7.72,213.99,213.86,7.14]
[1756432318470,0.03228741,213.95,213.86,7.14]
[1756432321974,0.03228741,213.95,213.86,11.14370895]
[1756432322273,0.03228741,213.95,213.87,7.14]
[1756432322777,321.46,214.09,213.91,7.14]
[1756432323871,321.46,214.09,213.98,0.03039779]
[1756432324474,7.72,214.07,213.98,0.03039779]
[1756432324668,11.72370895,214.04,213.98,0.03039779]
[1756432324871,7.72,214.04,213.98,0.03039779]
[1756432326068,11.72370895,214.04,213.98,0.03039779]
[1756432327378,7.12,214.03,213.98,0.03039779]
[1756432327573,4.00370895,214.04,213.98,0.03039779]
[1756432327768,2.53881736,214.03,213.98,0.03039779]
[1756432327973,4.00370895,214.04,213.98,0.03039779]
[1756432328678,7.12,214.03,213.98,0.03039779]
[1756432328874,4.00370895,214.04,213.98,0.03039779]
[1756432329076,7.12,214.03,213.98,0.03039779]
[1756432329773,4.00370895,214.07,213.98,0.03039779]
[1756432329978,7.12,214.06,213.98,0.03039779]
[1756432333182,7.12,213.98,213.79,7.24]
[1756432333385,7.12,213.98,213.72,7.80355033]
[1756432333386,7.12,213.82,213.64,7.24]
[1756432333582,4.00370895,213.68,213.56,7.78018632]
[1756432333777,4.59370895,213.68,213.52,7.24]
[1756432334181,0.59,213.68,213.52,7.24]
[1756432334584,0.03282919,213.62,213.52,7.24]
[1756432336787,0.03282919,213.62,213.53,81.42]
[1756432338080,0.03282919,213.62,213.54,7.24]
[1756432339586,0.03282919,213.62,213.54,130.9]
[1756432340089,0.03282919,213.62,213.48,7.24]
[1756432340480,0.59,213.63,213.48,7.24]
[1756432340880,0.03067159,213.57,213.48,7.24]
[1756432342189,0.03067159,213.57,213.42,4.00370895]
[1756432342190,0.62067159,213.57,213.42,7.24]
[1756432342392,0.62067159,213.57,213.42,130.88]
[1756432342588,4.00370895,213.62,213.43,7.24]
[1756432343093,0.03457574,213.52,213.43,7.24]
[1756432343696,0.03457574,213.52,213.46,7.24]
[1756432344692,0.59,213.63,213.46,7.24]
[1756432344891,0.59,213.63,213.48,7.24]
[1756432345795,0.59,213.63,213.53,0.03099141]
[1756432345994,0.63,213.74,213.53,11.27470036]
[1756432346292,0.63,213.74,213.55,7.24]
[1756432346484,0.63,213.74,213.57,4.00370895]
[1756432346692,0.63,213.74,213.62,0.03442367]
[1756432353198,0.63,213.74,213.63,7.24]
[1756432354001,0.63,213.74,213.66,0.0331033]
[1756432355308,0.63,213.71,213.66,0.0331033]
[1756432355603,0.6,213.67,213.51,7.24]
[1756432356803,0.03471115,213.61,213.51,7.24]
[1756432358102,0.03471115,213.61,213.52,123.04]
[1756432358304,0.03471115,213.61,213.53,7.5]
[1756432361208,0.03471115,213.61,213.48,7.5]
[1756432361405,0.62,213.6,213.48,7.5]
[1756432361712,0.62,213.6,213.48,130.3]
[1756432361912,0.62,213.6,213.48,7.5]
[1756432364614,0.03560437,213.56,213.48,7.5]
[1756432368220,2.74213053,213.55,213.48,7.5]
[1756432368419,0.03560437,213.56,213.44,61.6]
[1756432368621,2.74188875,213.55,213.44,61.6]
[1756432368823,4.00370895,213.61,213.4,4.00370895]
[1756432369022,4.00370895,213.61,213.41,122.4]
[1756432369023,0.03384659,213.52,213.41,122.4]
[1756432370226,0.03384659,213.52,213.38,314.48]
[1756432370426,0.03384659,213.52,213.39,122.32]
[1756432370622,2.74575655,213.51,213.39,122.32]
[1756432370814,2.74546617,213.5,213.39,122.32]
[1756432371014,0.03248243,213.48,213.39,122.32]
[1756432372416,0.03248243,213.48,213.39,126.32370895]
[1756432373222,0.03248243,213.48,213.4,4.00370895]
[1756432373821,0.03248243,213.48,213.38,314.48]
[1756432374026,0.03248243,213.48,213.39,122.12]
[1756432376028,0.03248243,213.48,213.41,4.00370895]
[1756432376424,0.03248243,213.48,213.44,65.5797]
[1756432376728,0.03248243,213.48,213.4,65.5934]
[1756432377026,0.03248243,213.48,213.41,122.04]
[1756432377027,2.76320519,213.47,213.41,122.04]
[1756432377228,2.76909053,213.46,213.44,65.5808]
[1756432377426,0.03248243,213.48,213.47,4.2153]
[1756432377724,2.80184042,213.48,213.47,4.2153]
[1756432379129,0.03248243,213.48,213.47,4.2153]
[1756432379329,2.68479846,213.48,213.42,65.5873]
[1756432379523,6.06583418,213.47,213.42,65.5873]
[1756432379719,2.65154369,213.46,213.42,65.5873]
[1756432379924,0.03248243,213.48,213.43,65.5842]
[1756432380119,2.65213819,213.47,213.43,65.5842]
[1756432380329,0.03248243,213.48,213.44,65.5795]
[1756432381127,0.03248243,213.48,213.47,4.2153]
[1756432381522,2.68501041,213.48,213.47,4.2153]
[1756432381728,4.00370895,213.6,213.51,65.5563]
[1756432381930,6.68892394,213.59,213.52,65.556]
[1756432382131,6.68892394,213.58,213.52,65.556]
[1756432382323,3.36993541,213.57,213.52,65.556]
[1756432382519,4.00370895,213.64,213.53,65.5529]
[1756432382825,314.64,213.68,213.59,65.5346]
[1756432382826,6.69295659,213.63,213.59,65.5346]
[1756432383029,3.37190492,213.62,213.6,4.2126]
[1756432383229,3.37190492,213.61,213.54,65.55]
[1756432383428,4.00370895,213.64,213.55,65.5458]
[1756432383632,4.00370895,213.64,213.59,0.03441289]
[1756432383633,6.67949539,213.63,213.59,0.03441289]
[1756432383828,6.67949539,213.62,213.59,0.03441289]
[1756432384027,3.37210845,213.61,213.59,0.03441289]
[1756432384230,4.00370895,213.66,213.6,4.2127]
[1756432384427,6.68064893,213.65,213.6,4.2127]
[1756432384627,6.68064893,213.64,213.6,4.2127]
[1756432384831,3.37274286,213.63,213.6,4.2127]
[1756432385033,4.00370895,213.66,213.6,4.2127]
[1756432385233,6.68127046,213.65,213.6,4.2127]
[1756432385434,6.68127046,213.64,213.6,4.2127]
[1756432385635,3.37283777,213.63,213.6,4.2127]
[1756432385933,3.37283777,213.62,213.6,4.2127]
[1756432386136,4.00370895,213.66,213.59,0.03441289]
[1756432386435,6.70247232,213.65,213.59,0.03441289]
[1756432386632,122.6,213.7,213.48,65.5685]
[1756432386633,4.00370895,213.61,213.48,65.5685]
[1756432386837,6.70247232,213.6,213.48,65.5685]
[1756432387033,4.00370895,213.61,213.48,65.5685]
[1756432387034,6.70247232,213.59,213.48,65.5685]
[1756432387227,3.39313636,213.58,213.48,65.5685]
[1756432387435,4.00370895,213.61,213.53,65.5531]
[1756432387638,3.39316454,213.6,213.53,65.5531]
[1756432387839,0.03166434,213.59,213.53,65.5531]